bitfinex/quotes_SOLUSD_20251204
["timestamp","ask_amount","ask_price","bid_price","bid_amount"]
[1764870150484,12.07397814,141.32,141.3,0.72]
[1764870151290,12.07397814,141.31,141.29,0.72]
[1764870151697,14.93479844,141.35,141.29,0.72]
[1764870151901,12.07397814,141.32,141.29,0.72]
[1764870152099,12.07397814,141.31,141.29,0.72]
[1764870152300,12.07397814,141.3,141.27,0.72]
[1764870152611,12.07397814,141.28,141.27,0.72]
[1764870153289,12.07397814,141.29,141.27,0.72]
[1764870153810,7.86,141.31,141.27,0.72]
[1764870154103,7.86,141.31,141.27,7.79853401]
[1764870154305,12.07397814,141.32,141.27,7.79853401]
[1764870154492,12.07397814,141.31,141.28,0.72]
[1764870155608,12.07397814,141.3,141.28,0.72]
[1764870156508,12.07397814,141.3,141.28,7.79792686]
[1764870157007,12.07397814,141.3,141.29,0.72]
[1764870157188,15.55567519,141.33,141.28,7.07792686]
[1764870157509,12.07397814,141.3,141.28,7.79792686]
[1764870157714,12.07397814,141.29,141.26,7.79903814]
[1764870157884,12.07397814,141.29,141.27,0.72]
[1764870158085,0.62,141.32,141.27,0.72]
[1764870158390,12.07397814,141.29,141.27,0.72]
[1764870161811,0.62,141.35,141.27,19.87255139]
[1764870162108,0.62,141.35,141.27,7.79857325]
[1764870162109,12.07397814,141.31,141.27,7.79857325]
[1764870162317,12.07397814,141.31,141.28,0.72]
[1764870162695,12.07397814,141.3,141.28,0.72]
[1764870162901,12.07397814,141.31,141.28,0.72]
[1764870163815,12.07397814,141.31,141.29,7.07764172]
[1764870164520,12.07397814,141.31,141.29,7.75764172]
[1764870165213,12.07397814,141.31,141.28,7.07800298]
[1764870165417,12.07397814,141.31,141.28,7.75800298]
[1764870166601,12.07397814,141.31,141.27,7.07864373]
[1764870166817,12.07397814,141.31,141.28,0.72]
[1764870168002,12.07397814,141.33,141.28,12.79397814]
[1764870168197,12.07397814,141.32,141.28,0.72]
[1764870168398,12.07397814,141.31,141.28,0.72]
[1764870168599,12.07397814,141.3,141.28,0.72]
[1764870169401,12.07397814,141.29,141.26,7.79901952]
[1764870169616,12.07397814,141.29,141.27,0.72]
[1764870170300,12.07397814,141.3,141.27,0.72]
[1764870170617,12.07397814,141.29,141.27,7.79864233]
[1764870170918,12.07397814,141.29,141.28,0.72]
[1764870171115,12.07397814,141.3,141.28,0.72]
[1764870171500,14.93679739,141.31,141.28,0.72]
[1764870171721,12.07397814,141.3,141.28,0.72]
[1764870172401,4.56062009,141.3,141.28,0.72]
[1764870172923,4.56062009,141.29,141.26,0.72]
[1764870173220,4.56062009,141.28,141.26,0.72]
[1764870174401,4.56062009,141.29,141.26,7.79901326]
[1764870174721,15.5569384,141.31,141.26,7.79901326]
[1764870174917,14.9369384,141.31,141.27,0.72]
[1764870175125,4.56062009,141.3,141.27,0.72]
[1764870175601,4.56062009,141.29,141.27,0.72]
[1764870175798,4.56062009,141.32,141.27,0.72]
[1764870176021,4.56062009,141.31,141.27,0.72]
[1764870176327,4.56062009,141.3,141.28,7.07814269]
[1764870176827,4.56062009,141.31,141.29,0.72]
[1764870177015,4.56062009,141.3,141.27,0.72]
[1764870177522,0.62,141.32,141.27,7.79861711]
[1764870177702,4.56062009,141.29,141.27,7.79861711]
[1764870178106,0.62,141.32,141.28,0.72]
[1764870178321,4.56062009,141.31,141.28,7.79798671]
[1764870178704,4.56062009,141.31,141.29,0.72]
[1764870180424,34.61324069,141.37,141.29,7.79753993]
[1764870180725,4.56062009,141.33,141.3,0.72]
[1764870180914,15.55413695,141.36,141.3,0.72]
[1764870181223,14.93377512,141.37,141.3,5.28062009]
[1764870181407,4.56062009,141.35,141.3,0.72]
[1764870181609,15.55377512,141.37,141.31,0.72]
[1764870181810,4.56062009,141.34,141.31,0.72]
[1764870182212,7.86,141.37,141.31,0.72]
[1764870182422,2.91777509,141.32,141.31,0.72]
[1764870182734,2.91777509,141.32,141.28,7.79784187]
[1764870182920,2.91777509,141.31,141.29,0.72]
[1764870183314,2.91777509,141.32,141.29,0.72]
[1764870183629,2.91777509,141.32,141.29,7.79759494]
[1764870184329,0.62,141.35,141.29,7.79759494]
[1764870184330,7.07513796,141.34,141.29,7.79759494]
[1764870184536,2.91777509,141.32,141.29,7.79759494]
[1764870184837,7.07513796,141.34,141.3,0.72]
[1764870185009,2.91777509,141.32,141.3,0.72]
[1764870185615,7.07513796,141.34,141.3,0.72]
[1764870185819,2.91777509,141.32,141.3,0.72]
[1764870186106,2.91777509,141.31,141.3,0.72]
[1764870186538,2.91777509,141.32,141.3,0.72]
[1764870189131,14.91534365,141.34,141.3,0.72]
[1764870189331,2.91777509,141.32,141.3,0.72]
[1764870189918,2.91777509,141.33,141.3,0.72]
[1764870190107,0.62,141.33,141.28,7.79794002]
[1764870190311,2.91777509,141.3,141.28,0.72]
[1764870190530,2.91777509,141.29,141.26,7.79875959]
[1764870190934,2.91777509,141.33,141.26,0.72]
[1764870190935,2.91777509,141.28,141.26,0.72]
[1764870191114,2.91777509,141.28,141.22,16.308864]
[1764870191115,8.46,141.3,141.24,7.79984885]
[1764870191434,8.46,141.3,141.24,7.07984885]
[1764870191435,2.91777509,141.27,141.24,7.07984885]
[1764870191639,2.91777509,141.27,141.25,0.72]
[1764870191835,2.91777509,141.28,141.25,0.72]
[1764870192335,33.99814461,141.33,141.25,3.63777509]
[1764870192520,2.91777509,141.31,141.26,2.91777509]
[1764870192720,2.91777509,141.32,141.27,2.91777509]
[1764870192932,2.91777509,141.32,141.28,0.69]
[1764870193741,2.91777509,141.32,141.29,7.07764172]
[1764870194534,2.91777509,141.31,141.29,7.76764172]
[1764870194746,2.91777509,141.31,141.3,0.69]
[1764870194921,2.91777509,141.31,141.29,7.07764172]
[1764870194922,2.91777509,141.31,141.28,7.07803319]
[1764870195122,2.91777509,141.31,141.28,7.76803319]
[1764870195535,2.91777509,141.31,141.29,0.69]
[1764870195718,2.91777509,141.31,141.29,7.76762756]
[1764870196138,2.91777509,141.32,141.29,7.76762756]
[1764870196725,7.69565951,141.33,141.29,7.76762756]
[1764870196916,2.91777509,141.32,141.29,7.76762756]
[1764870198025,2.91777509,141.3,141.22,0.70811499]
[1764870198221,2.91777509,141.28,141.25,0.69]
[1764870198417,2.91777509,141.27,141.23,0.69]
[1764870198620,2.91777509,141.27,141.24,7.08001554]
[1764870198842,2.91777509,141.27,141.24,7.77001554]
[1764870199829,9.99645248,141.27,141.24,0.69]
[1764870200047,2.91777509,141.26,141.24,0.69]
[1764870200244,2.91777509,141.26,141.22,7.77099176]
[1764870200448,2.91777509,141.26,141.23,0.69]
[1764870201452,2.91777509,141.26,141.23,7.77048647]
[1764870202749,7.69867739,141.27,141.23,7.77048647]
[1764870202951,7.69672821,141.31,141.24,0.69]
[1764870203129,14.91672821,141.31,141.24,0.69]
[1764870203451,2.91777509,141.3,141.25,2.91777509]
[1764870203634,2.91777509,141.3,141.26,0.69]
[1764870204034,2.91777509,141.3,141.26,7.76893901]
[1764870204550,2.91777509,141.3,141.27,0.69]
[1764870204949,14.91672821,141.31,141.27,0.69]
[1764870205154,2.91777509,141.3,141.27,0.69]
[1764870206055,2.91777509,141.3,141.27,7.76861708]
[1764870206445,10.75777509,141.31,141.28,0.69]
[1764870207028,2.91777509,141.3,141.27,7.76861708]
[1764870207231,14.91673105,141.31,141.28,0.69]
[1764870207443,2.91777509,141.3,141.28,0.69]
[1764870207643,2.91777509,141.32,141.28,0.69]
[1764870207849,2.91777509,141.31,141.28,0.69]
[1764870208052,2.91777509,141.31,141.28,7.76812035]
[1764870208952,2.91777509,141.29,141.26,0.69]
[1764870209257,2.91777509,141.29,141.25,7.84]
[1764870209441,2.91777509,141.29,141.26,0.69]
[1764870209760,2.91777509,141.29,141.26,7.76912049]
[1764870210056,2.91777509,141.29,141.27,0.69]
[1764870210553,2.91777509,141.3,141.27,0.69]
[1764870210755,2.91777509,141.29,141.27,0.69]
[1764870211258,2.91777509,141.3,141.27,7.76854797]
[1764870211758,2.91777509,141.31,141.28,0.69]
[1764870211955,9.9944225,141.31,141.28,0.69]
[1764870212159,2.91777509,141.3,141.28,0.69]
[1764870213867,2.91777509,141.29,141.27,7.07854797]
[1764870214062,2.91777509,141.29,141.27,0.69]
[1764870215267,0.62,141.32,141.27,7.76831732]
[1764870215268,7.0762317,141.32,141.27,7.76831732]
[1764870215444,2.91777509,141.31,141.27,7.76831732]
[1764870215644,2.91777509,141.31,141.28,0.69]
[1764870216561,2.91777509,141.31,141.28,7.76809156]
[1764870216738,2.41777509,141.31,141.28,7.76809156]
[1764870216940,2.91777509,141.31,141.29,0.69]
[1764870217783,2.91777509,141.31,141.26,20.61479665]
[1764870217784,3.53777509,141.3,141.24,18.38961685]
[1764870218061,2.91777509,141.27,141.24,0.69]
[1764870218267,2.91777509,141.27,141.25,0.69]
[1764870218963,8.46,141.29,141.25,0.69]
[1764870219263,2.91777509,141.26,141.23,7.77042233]
[1764870219848,2.91777509,141.26,141.24,0.69]
[1764870220457,7.07878105,141.27,141.24,0.69]
[1764870220458,2.91777509,141.27,141.24,0.69]
[1764870221758,2.91777509,141.26,141.24,0.69]
[1764870222066,7.69843783,141.28,141.23,7.08042233]
[1764870222067,2.91777509,141.25,141.23,7.08042233]
[1764870222250,2.91777509,141.25,141.23,7.77042233]
[1764870223354,2.91777509,141.26,141.23,7.08042233]
[1764870223562,2.91777509,141.26,141.24,0.66]
[1764870224065,2.91777509,141.26,141.23,7.08042233]
[1764870224371,2.91777509,141.26,141.23,7.74042233]
[1764870224548,2.91777509,141.26,141.24,0.66]
[1764870225172,2.91777509,141.25,141.22,7.74096655]
[1764870225354,2.91777509,141.26,141.23,7.08049677]
[1764870225555,2.91777509,141.26,141.23,7.74049677]
[1764870225757,2.91777509,141.26,141.24,0.66]
[1764870225963,9.99645878,141.27,141.24,0.66]
[1764870226851,2.91777509,141.28,141.24,7.739892]
[1764870227267,2.91777509,141.28,141.25,0.66]
[1764870228681,9.99560697,141.29,141.25,7.73963247]
[1764870228886,2.91777509,141.29,141.25,7.73963247]
[1764870229056,2.91777509,141.29,141.26,0.66]
[1764870229378,2.91777509,141.28,141.26,0.66]
[1764870231180,9.99544585,141.29,141.26,7.73914436]
[1764870231377,7.07767076,141.29,141.26,7.73914436]
[1764870231584,0.62,141.32,141.27,0.66]
[1764870231757,2.91777509,141.31,141.27,0.66]
[1764870231954,2.91777509,141.29,141.26,7.07914436]
[1764870232170,2.91777509,141.29,141.27,0.66]
[1764870232372,2.91777509,141.3,141.27,7.73826244]
[1764870232879,2.91777509,141.3,141.28,0.66]
[1764870233456,2.91777509,141.31,141.28,0.66]
[1764870234063,7.07636907,141.32,141.28,0.66]
[1764870234272,2.91777509,141.31,141.28,0.66]
[1764870234475,2.91777509,141.31,141.28,7.7379737]
[1764870234978,9.99414416,141.32,141.29,0.66]
[1764870235152,2.91777509,141.32,141.29,0.66]
[1764870235559,9.99364697,141.33,141.29,0.66]
[1764870235884,17.83364697,141.33,141.29,0.66]
[1764870236055,18.45364697,141.33,141.29,0.66]
[1764870236456,2.91777509,141.31,141.27,2.91777509]
[1764870236655,15.53587188,141.33,141.29,0.66]
[1764870236973,2.91777509,141.32,141.29,0.66]
[1764870237470,3.53777509,141.32,141.29,7.73747863]
[1764870237788,3.53777509,141.32,141.29,7.07747863]
[1764870237998,3.53777509,141.32,141.29,7.73747863]
[1764870238771,2.91777509,141.32,141.29,7.73747863]
[1764870239901,3.53777509,141.32,141.29,7.73747863]
[1764870240301,15.53587188,141.33,141.29,7.73747863]
[1764870240501,2.91777509,141.32,141.29,7.73747863]
[1764870241002,0.62,141.37,141.3,0.66]
[1764870241204,0.62,141.39,141.34,2.91777509]
[1764870241504,0.62,141.39,141.35,2.91777509]
[1764870241505,18.30228399,141.39,141.35,2.91777509]
[1764870241710,0.62,141.39,141.35,2.91777509]
[1764870241877,17.82991087,141.4,141.36,0.66]
[1764870242082,18.44991087,141.4,141.36,0.66]
[1764870242387,20.08660924,141.4,141.36,0.66]
[1764870242694,5.17447346,141.39,141.34,5.21447346]
[1764870242897,5.17447346,141.39,141.34,4.55447346]
[1764870243080,7.07313622,141.38,141.35,0.66]
[1764870243281,7.07313622,141.38,141.35,5.21447346]
[1764870243483,7.84,141.4,141.36,4.55447346]
[1764870243697,12.39447346,141.4,141.36,5.21447346]
[1764870244610,19.46674382,141.4,141.36,12.28838548]
[1764870246212,4.55447346,141.38,141.34,0.66]
[1764870246416,4.55447346,141.38,141.35,0.66]
[1764870247323,11.6278642,141.38,141.35,0.66]
[1764870248017,7.07339074,141.38,141.35,0.66]
[1764870248222,7.07277414,141.39,141.35,12.28907442]
[1764870248523,7.07277414,141.39,141.35,7.73460096]
[1764870248819,7.07277414,141.39,141.36,0.66]
[1764870249809,7.07233387,141.4,141.36,7.73397891]
[1764870250024,7.07233387,141.4,141.36,12.28845237]
[1764870250210,7.07233387,141.4,141.37,0.66]
[1764870250415,11.62680733,141.4,141.37,0.66]
[1764870252104,4.55447346,141.38,141.37,0.66]
[1764870252939,4.55447346,141.39,141.37,0.66]
[1764870253227,11.62746859,141.39,141.37,0.66]
[1764870255751,7.07213578,141.4,141.37,0.66]
[1764870256151,11.62660924,141.4,141.37,0.66]
[1764870256327,19.46660924,141.4,141.37,0.66]
[1764870256953,4.55447346,141.39,141.37,0.66]
[1764870257648,11.62742575,141.39,141.37,0.66]
[1764870257956,7.07230412,141.4,141.37,5.21447346]
[1764870258270,0.2,141.41,141.39,4.55447346]
[1764870258555,0.2,141.41,141.4,5.21447346]
[1764870260545,0.2,141.41,141.4,4.55447346]
[1764870260848,0.2,141.41,141.4,5.21447346]
[1764870261236,0.2,141.41,141.4,0.66]
[1764870261546,0.2,141.41,141.4,5.21447346]
[1764870261928,0.2,141.41,141.36,16.308864]
[1764870262151,7.27163566,141.41,141.39,4.55447346]
[1764870262355,7.27163566,141.41,141.39,5.21447346]
[1764870262546,7.27163566,141.41,141.36,16.308864]
[1764870262547,0.62,141.4,141.36,16.308864]
[1764870262877,4.55447346,141.4,141.37,0.66]
[1764870263057,0.62,141.4,141.36,5.21447346]
[1764870263253,29.50519829,141.41,141.37,0.66]
[1764870263458,30.12519829,141.41,141.37,0.66]
[1764870264646,30.12519829,141.41,141.37,5.21447346]
[1764870264647,12.44610912,141.41,141.37,5.21447346]
[1764870264956,0.2,141.41,141.39,4.55447346]
[1764870265155,0.2,141.41,141.37,7.73357854]
[1764870265156,0.2,141.41,141.4,4.55447346]
[1764870265676,0.2,141.41,141.4,5.21447346]
[1764870266754,0.2,141.41,141.4,12.28660924]
[1764870269357,0.2,141.41,141.4,33.1499467]
[1764870269751,0.2,141.41,141.4,40.9899467]
[1764870270584,0.2,141.42,141.4,49.79989162]
[1764870270752,0.2,141.45,141.44,7.07013574]
[1764870270955,0.2,141.45,141.44,11.6246092]
[1764870271150,0.2,141.45,141.44,12.2846092]
[1764870274373,0.2,141.45,141.44,7.73013574]
[1764870274563,0.2,141.45,141.44,12.2846092]
[1764870275978,0.2,141.45,141.44,21.09455412]
[1764870276564,0.2,141.47,141.46,16.308864]
[1764870276764,0.2,141.47,141.46,33.25781092]
[1764870276963,0.2,141.47,141.46,33.91781092]
[1764870277984,0.2,141.47,141.46,40.98694707]
[1764870281566,0.2,141.47,141.46,27.93247361]
[1764870281776,0.2,141.47,141.46,11.62360961]
[1764870282384,0.2,141.47,141.46,12.32360961]
[1764870283669,0.2,141.47,141.46,16.87808307]
[1764870283979,0.2,141.47,141.46,33.18694707]
[1764870284286,0.2,141.48,141.46,33.18694707]
[1764870284488,0.2,141.52,141.51,4.55447346]
[1764870284901,0.2,141.52,141.51,5.23447346]
[1764870286492,0.2,141.52,141.51,12.30111186]
[1764870289486,0.2,141.52,141.51,4.55447346]
[1764870289901,0.2,141.52,141.5,7.06703882]
[1764870290283,0.2,141.52,141.49,38.53124572]
[1764870290284,0.62,141.51,141.49,11.6220417]
[1764870290489,0.82,141.52,141.49,11.6220417]
[1764870291414,0.62,141.51,141.45,17.67352171]
[1764870291581,4.55447346,141.5,141.46,4.55447346]
[1764870292120,0.62,141.49,141.46,7.06900851]
[1764870292418,5.17447346,141.49,141.46,7.06900851]
[1764870293796,0.62,141.49,141.46,7.06900851]
[1764870294413,7.68764173,141.49,141.46,7.06900851]
[1764870294592,7.68764173,141.49,141.46,6.56900851]
[1764870296014,7.68764173,141.49,141.46,11.12348197]
[1764870298001,0.62,141.49,141.46,6.06900851]
[1764870298519,0.62,141.49,141.46,10.62348197]
[1764870299297,0.62,141.5,141.46,11.30348197]
[1764870299515,5.17447346,141.5,141.46,11.30348197]
[1764870299722,20.28076242,141.52,141.47,5.23447346]
[1764870299927,7.88628896,141.52,141.48,4.55447346]
[1764870300136,7.26628896,141.52,141.48,5.23447346]
[1764870300334,0.2,141.52,141.49,5.23447346]
[1764870300639,0.2,141.52,141.46,31.58184888]
[1764870300822,4.55447346,141.5,141.46,6.06900851]
[1764870301230,5.17447346,141.5,141.46,11.30348197]
[1764870301435,5.17447346,141.5,141.46,5.23447346]
[1764870301615,12.2417292,141.5,141.46,5.23447346]
[1764870301943,0.71,141.49,141.46,4.73447346]
[1764870302133,5.26447346,141.49,141.44,24.74525066]
[1764870302336,5.26447346,141.49,141.44,29.29972412]
[1764870302535,0.71,141.48,141.44,29.29972412]
[1764870302736,5.26447346,141.48,141.44,11.6246092]
[1764870303422,4.55447346,141.48,141.44,11.6246092]
[1764870303623,4.55447346,141.46,141.37,35.36730624]
[1764870303833,0.71,141.47,141.4,4.55447346]
[1764870303834,4.55447346,141.45,141.4,4.55447346]
[1764870304034,4.55447346,141.44,141.4,7.07197654]
[1764870304435,0.71,141.43,141.4,7.07197654]
[1764870304633,2.913049,141.42,141.37,21.27671132]
[1764870304841,76.38836204,141.48,141.41,2.913049]
[1764870304842,0.71,141.45,141.41,2.913049]
[1764870305036,0.71,141.45,141.42,2.913049]
[1764870305342,10.753049,141.47,141.42,2.913049]
[1764870305542,0.71,141.45,141.42,9.98397479]
[1764870306426,17.82207233,141.47,141.43,3.593049]
[1764870306427,15.61902333,141.47,141.43,3.593049]
[1764870306627,0.71,141.46,141.43,3.593049]
[1764870306831,8.55,141.47,141.44,0.68]
[1764870307035,0.71,141.47,141.43,2.913049]
[1764870307236,2.913049,141.45,141.4,18.35976466]
[1764870307539,2.913049,141.45,141.41,7.07149894]
[1764870307540,9.98268608,141.45,141.41,7.07149894]
[1764870307723,0.71,141.44,141.41,9.98454794]
[1764870308117,3.623049,141.44,141.41,7.07149894]
[1764870308348,0.71,141.44,141.41,7.07149894]
[1764870308645,3.623049,141.44,141.41,7.07149894]
[1764870308945,3.623049,141.44,141.41,7.75149894]
[1764870309843,0.71,141.47,141.42,0.68]
[1764870310048,24.08608895,141.5,141.45,2.913049]
[1764870310229,9.98027395,141.5,141.45,2.913049]
[1764870310548,3.623049,141.49,141.44,2.913049]
[1764870310728,2.913049,141.47,141.42,3.593049]
[1764870310923,2.913049,141.46,141.41,41.05945211]
[1764870311131,2.913049,141.45,141.41,14.91149894]
[1764870311436,2.913049,141.45,141.41,15.59149894]
[1764870311743,16.84994492,141.52,141.43,7.07063565]
[1764870311744,16.308864,141.51,141.43,7.07063565]
[1764870311950,2.913049,141.46,141.43,32.58722477]
[1764870312349,2.913049,141.46,141.43,7.75063565]
[1764870312558,2.913049,141.47,141.43,7.75063565]
[1764870313029,3.603049,141.46,141.43,7.07063565]
[1764870313928,3.603049,141.46,141.43,7.73063565]
[1764870314952,2.913049,141.46,141.43,7.73063565]
[1764870315457,2.913049,141.47,141.44,0.66]
[1764870315658,3.603049,141.5,141.45,9.98268491]
[1764870315857,3.603049,141.5,141.45,24.74372569]
[1764870316041,3.603049,141.49,141.45,25.40372569]
[1764870317853,2.913049,141.48,141.45,25.40372569]
[1764870318061,2.913049,141.48,141.45,7.06963591]
[1764870318062,3.603049,141.48,141.45,7.06963591]
[1764870318569,6.93146342,141.48,141.45,7.72963591]
[1764870318956,0.69,141.47,141.45,7.06953519]
[1764870319260,7.62146342,141.47,141.45,7.06953519]
[1764870319457,6.93146342,141.47,141.45,7.06953519]
[1764870320147,7.75795553,141.49,141.44,7.07013574]
[1764870320349,6.93146342,141.48,141.44,7.73013574]
[1764870320548,7.62146342,141.48,141.44,7.73013574]
[1764870321371,6.93146342,141.49,141.45,0.66]
[1764870321570,7.62146342,141.49,141.45,0.66]
[1764870322248,7.62146342,141.49,141.46,7.06913615]
[1764870322770,6.93146342,141.5,141.46,7.06913615]
[1764870322945,7.62146342,141.5,141.46,7.72913615]
[1764870323266,7.62146342,141.5,141.47,0.66]
[1764870323644,7.62146342,141.5,141.46,7.06913615]
[1764870323845,7.62146342,141.5,141.46,7.72913615]
[1764870324470,6.93146342,141.49,141.46,7.72913615]
[1764870324665,7.62146342,141.49,141.46,7.72913615]
[1764870325061,6.93146342,141.48,141.46,7.06913615]
[1764870325253,6.93146342,141.47,141.43,24.808864]
[1764870325573,7.62146342,141.47,141.44,7.72968635]
[1764870325750,6.93146342,141.46,141.44,7.06968635]
[1764870326147,7.62146342,141.47,141.44,7.06968635]
[1764870326553,7.62146342,141.47,141.44,7.72968635]
[1764870328771,6.93146342,141.47,141.44,7.72968635]
[1764870330175,6.93146342,141.48,141.45,0.66]
[1764870330349,14.77146342,141.5,141.46,6.93146342]
[1764870330762,15.46146342,141.5,141.47,7.72863646]
[1764870330961,15.46146342,141.5,141.47,7.06863646]
[1764870331160,6.93146342,141.51,141.48,0.66]
[1764870331461,14.88776603,141.52,141.48,0.66]
[1764870331769,7.62146342,141.51,141.48,0.66]
[1764870332280,7.62146342,141.51,141.48,7.72801208]
[1764870332488,6.93146342,141.51,141.48,7.72801208]
[1764870332675,14.19776603,141.52,141.48,7.72801208]
[1764870332860,14.88776603,141.52,141.48,7.72801208]
[1764870333399,0.2,141.52,141.49,0.66]
[1764870333568,0.89,141.52,141.48,15.56801208]
[1764870333754,0.89,141.52,141.48,33.23835417]
[1764870333955,7.82146342,141.52,141.48,33.23835417]
[1764870334173,7.82146342,141.52,141.48,40.16981759]
[1764870334486,0.69,141.51,141.48,7.06801208]
[1764870334855,0.69,141.51,141.48,7.72801208]
[1764870335057,0.69,141.51,141.48,7.06801208]
[1764870335255,0.69,141.51,141.47,6.93146342]
[1764870335256,6.93146342,141.5,141.47,7.06835382]
[1764870335678,7.62146342,141.49,141.46,7.06894736]
[1764870335879,6.93146342,141.48,141.45,7.06945992]
[1764870336051,6.93146342,141.47,141.44,7.06998833]
[1764870336378,6.93146342,141.46,141.44,7.06998833]
[1764870336578,7.62146342,141.46,141.44,7.06998833]
[1764870337197,7.62146342,141.46,141.43,7.07063565]
[1764870337407,6.93146342,141.47,141.43,7.07063565]
[1764870337600,0.69,141.47,141.43,7.73063565]
[1764870337796,7.62146342,141.47,141.43,7.73063565]
[1764870338189,14.69021436,141.47,141.43,7.73063565]
[1764870338395,3.60194996,141.47,141.43,7.73063565]
[1764870338727,3.60194996,141.46,141.43,7.07063565]
[1764870339219,2.91194996,141.44,141.41,7.07133326]
[1764870339403,2.91194996,141.43,141.4,7.0719992]
[1764870339587,2.91194996,141.42,141.4,7.0719992]
[1764870339910,3.60194996,141.43,141.4,7.0719992]
[1764870340205,7.06978659,141.45,141.4,7.7319992]
[1764870340405,2.91194996,141.43,141.4,7.7319992]
[1764870340616,2.91194996,141.43,141.4,7.0719992]
[1764870340781,2.91194996,141.43,141.4,7.7319992]
[1764870341116,3.60194996,141.43,141.4,7.0719992]
[1764870341317,2.91194996,141.43,141.4,7.7319992]
[1764870341975,0.69,141.42,141.38,3.57194996]
[1764870342179,3.60194996,141.42,141.39,7.0722947]
[1764870342575,2.91194996,141.41,141.38,0.66]
[1764870342785,3.63194996,141.41,141.38,7.73295941]
[1764870342990,2.91194996,141.41,141.38,0.66]
[1764870343195,7.07087145,141.43,141.38,0.66]
[1764870343196,2.91194996,141.42,141.39,7.07252364]
[1764870343395,3.63194996,141.42,141.39,7.07252364]
[1764870343598,2.91194996,141.44,141.4,0.72]
[1764870343982,3.63194996,141.44,141.4,0.72]
[1764870344383,0.72,141.44,141.4,3.63194996]
[1764870344603,0.72,141.44,141.41,0.72]
[1764870344809,0.72,141.44,141.41,7.79125923]
[1764870345505,9.98158587,141.45,141.41,7.07125923]
[1764870345710,10.70214545,141.44,141.4,7.07213578]
[1764870346197,9.98214545,141.44,141.4,7.79213578]
[1764870346401,10.70214545,141.44,141.4,7.79213578]
[1764870346601,0.72,141.43,141.4,7.79213578]
[1764870347889,3.63194996,141.44,141.4,7.79213578]
[1764870348095,0.72,141.44,141.4,9.98408574]
[1764870348295,3.63194996,141.44,141.4,10.70408574]
[1764870348491,24.09817244,141.46,141.41,3.63194996]
[1764870348808,23.37817244,141.46,141.42,2.91194996]
[1764870349107,10.70068525,141.47,141.42,3.63194996]
[1764870349310,10.70068525,141.47,141.43,0.71]
[1764870349490,3.63194996,141.47,141.43,0.71]
[1764870350393,7.84,141.48,141.44,14.00253103]
[1764870350595,15.42239529,141.48,141.44,14.00253103]
[1764870350789,14.64972164,141.5,141.45,7.64239529]
[1764870351195,13.99972164,141.5,141.46,0.71]
[1764870351404,0.65,141.49,141.46,0.71]
[1764870351813,21.83924925,141.51,141.46,7.64239529]
[1764870352014,15.42239529,141.51,141.46,7.64239529]
[1764870352188,15.42239529,141.51,141.47,0.71]
[1764870352809,7.58239529,141.51,141.47,7.77825946]
[1764870353390,6.93239529,141.51,141.47,7.77825946]
[1764870353594,0.65,141.5,141.47,7.06825946]
[1764870353799,0.65,141.5,141.47,7.77825946]
[1764870354404,13.99927446,141.51,141.47,7.77825946]
[1764870354597,14.64927446,141.51,141.47,7.77825946]
[1764870355315,7.26625034,141.52,141.48,0.71]
[1764870355515,0.2,141.52,141.48,0.71]
[1764870355940,6.93239529,141.51,141.47,14.00065475]
[1764870356217,6.93239529,141.51,141.46,22.55140015]
[1764870356405,7.58239529,141.5,141.46,7.77900486]
[1764870356797,6.93239529,141.5,141.46,7.77900486]
[1764870357124,6.93239529,141.48,141.44,17.018864]
[1764870357419,13.99984168,141.5,141.46,6.93239529]
[1764870357610,13.99984168,141.5,141.45,14.7117239]
[1764870357803,14.64984168,141.5,141.46,0.71]
[1764870358604,14.64984168,141.5,141.46,7.77895425]
[1764870358803,13.99984168,141.5,141.46,7.77895425]
[1764870359011,14.64984168,141.5,141.46,7.77895425]
[1764870359522,7.71744639,141.5,141.46,7.77895425]
[1764870359727,14.64984168,141.5,141.46,7.77895425]
[1764870361206,6.93239529,141.47,141.43,0.71]
[1764870361518,6.93239529,141.46,141.43,7.78032059]
[1764870361712,6.93239529,141.46,141.42,7.07109902]